fUSD/lending_fUSD_20250119
["ID","MTS","AMOUNT","RATE_DAILY","PERIOD"]
[349564521,1737297047588,-500.0,0.00020547,2]
[349564522,1737297047597,-715.79,0.00020547,2]
[349564523,1737297047607,-770.14,0.00020547,2]
[349564524,1737297047616,-505.49,0.00020547,2]
[349564525,1737297047625,-500.0,0.00020547,2]
[349564526,1737297047634,-160.130827,0.00020671,14]
[349564527,1737297047643,-160.130827,0.00020679,5]
[349564528,1737297047653,-366.0,0.000208,2]
[349564529,1737297047662,-396.0,0.000208,2]
[349564530,1737297047671,-206.23798204,0.0002082,2]
[349564531,1737297047680,-500.0,0.0002082,2]
[349564532,1737297047689,-500.0,0.0002082,2]
[349564533,1737297047699,-500.0,0.0002082,2]
[349564534,1737297047708,-564.97,0.0002082,2]
[349564535,1737297047718,-500.0,0.0002082,2]
[349564536,1737297047727,-888.79,0.0002082,2]
[349564537,1737297047736,-513.62,0.0002082,2]
[349564538,1737297047746,-1454.93,0.0002082,2]
[349564539,1737297047755,-778.47,0.0002082,2]
[349564540,1737297047764,-1218.41,0.0002082,2]
[349564541,1737297047773,-1427.49,0.0002082,2]
[349564542,1737297047783,-500.0,0.0002082,2]
[349564543,1737297047792,-610.78,0.0002082,2]
[349564544,1737297047802,-699.01,0.0002082,2]
[349564545,1737297047814,-500.0,0.0002082,2]
[349564546,1737297047823,-1351.91,0.0002082,2]
[349564547,1737297047832,-1249.63,0.0002082,2]
[349564548,1737297047842,-500.0,0.0002082,2]
[349564549,1737297047852,-500.0,0.0002082,2]
[349564550,1737297047861,-500.0,0.0002082,2]
[349564551,1737297047870,-2627.85,0.0002082,2]
[349564552,1737297047879,-969.05,0.0002082,2]
[349564553,1737297047889,-500.0,0.0002082,2]
[349564554,1737297047899,-620.96,0.0002082,2]
[349564555,1737297047910,-500.0,0.0002082,2]
[349564556,1737297047920,-500.0,0.00020821,2]
[349564557,1737297047929,-500.0,0.00020821,2]
[349564558,1737297047938,-500.0,0.00020821,2]
[349564559,1737297047948,-500.0,0.00020821,2]
[349564560,1737297047958,-529.04244721,0.00020821,2]
[349564561,1737297047967,-500.0,0.00020821,2]
[349564562,1737297047976,-500.0,0.00020821,2]
[349564563,1737297047986,-500.0,0.00020821,2]
[349564564,1737297047995,-500.0,0.00020821,2]
[349564565,1737297048005,-500.0,0.00020821,2]
[349564566,1737297048014,-500.0,0.00020821,2]
[349564567,1737297048023,-500.0,0.00020821,2]
[349564568,1737297048033,-640.93266322,0.00020821,2]
[349564569,1737297048043,-500.0,0.00020821,2]
[349564570,1737297048052,-500.0,0.00020821,2]
[349564571,1737297048064,-500.0,0.00020821,2]
[349564572,1737297048075,-500.0,0.00020821,2]
[349564573,1737297048085,-500.0,0.00020821,2]
[349564574,1737297048095,-500.0,0.00020821,2]
[349564575,1737297048105,-500.0,0.00020821,2]
[349564576,1737297048115,-276.46,0.00020821,2]
[349564577,1737297048124,-500.0,0.00020821,2]
[349564578,1737297048134,-500.0,0.00020821,2]
[349564579,1737297048148,-500.0,0.00020821,2]
[349564580,1737297048158,-500.0,0.00020821,2]
[349564581,1737297048168,-504.62,0.00020821,2]
[349564582,1737297048179,-594.73,0.00020821,2]
[349564583,1737297048188,-500.0,0.00020821,2]
[349564584,1737297048199,-500.0,0.00020821,2]
[349564585,1737297048208,-500.0,0.00020821,2]
[349564586,1737297048218,-500.0,0.00020821,2]
[349564587,1737297048229,-500.0,0.00020821,2]
[349564588,1737297048239,-500.0,0.00020821,2]
[349564589,1737297048250,-267.807979,0.00020821,2]
[349564590,1737297048260,-500.0,0.00020821,2]
[349564591,1737297048272,-377.74974089,0.00020821,2]
[349564592,1737297048281,-500.0,0.00020821,2]
[349564593,1737297048290,-500.0,0.00020821,2]
[349564594,1737297048299,-475.588485,0.00020821,2]
[349564595,1737297048311,-500.0,0.00020821,2]
[349564596,1737297048321,-500.0,0.00020821,2]
[349564597,1737297048331,-500.0,0.00020821,2]
[349564598,1737297048341,-500.0,0.00020821,2]
[349564599,1737297048351,-500.0,0.00020821,2]
[349564600,1737297048360,-500.0,0.00020821,2]
[349564601,1737297048370,-538.70471643,0.00020821,2]
[349564602,1737297048380,-500.0,0.00020821,2]
[349564603,1737297048390,-500.0,0.00020821,2]
[349564604,1737297048399,-500.0,0.00020821,2]
[349564605,1737297048408,-894.29,0.00020821,2]
[349564606,1737297048418,-311.20568935,0.00020821,2]
[349564607,1737297048427,-500.0,0.00020821,2]
[349564608,1737297048436,-500.0,0.00020821,2]
[349564609,1737297048447,-500.0,0.00020821,2]
[349564610,1737297048456,-500.0,0.00020821,2]
[349564611,1737297048466,-500.0,0.00020821,2]
[349564612,1737297048476,-500.0,0.00020821,2]
[349564613,1737297048486,-500.0,0.00020821,2]
[349564614,1737297048495,-500.0,0.00020821,2]
[349564615,1737297048505,-960.31,0.00020821,2]
[349564616,1737297048514,-500.0,0.00020821,2]
[349564617,1737297048524,-642.02,0.00020821,2]
[349564618,1737297048534,-500.0,0.00020821,2]
[349564619,1737297048543,-675.63,0.00020821,2]
[349564620,1737297048553,-950.79,0.00020821,2]
[349564621,1737297048564,-500.0,0.00020821,2]
[349564622,1737297048574,-531.04,0.00020821,2]
[349564623,1737297048583,-500.0,0.00020821,2]
[349564624,1737297048593,-500.0,0.00020821,2]
[349564625,1737297048602,-1112.84,0.00020821,2]
[349564626,1737297048612,-1029.94,0.00020821,2]
[349564627,1737297048621,-500.0,0.00020821,2]
[349564628,1737297048631,-500.0,0.00020821,2]
[349564629,1737297048641,-500.0,0.00020821,2]
[349564630,1737297048651,-500.0,0.00020821,2]
[349564631,1737297048660,-500.0,0.00020821,2]
[349564632,1737297048670,-562.67,0.00020821,2]
[349564633,1737297048680,-500.0,0.00020821,2]
[349564634,1737297048690,-500.0,0.00020821,2]
[349564635,1737297048700,-500.0,0.00020821,2]
[349564636,1737297048709,-500.0,0.00020821,2]
[349564637,1737297048719,-627.94,0.00020821,2]
[349564638,1737297048728,-500.0,0.00020821,2]
[349564639,1737297048738,-988.26,0.00020821,2]
[349564640,1737297048747,-767.92,0.00020821,2]
[349564641,1737297048756,-500.0,0.00020821,2]
[349564642,1737297048766,-1345.32,0.00020821,2]
[349564643,1737297048775,-500.0,0.00020821,2]
[349564644,1737297048785,-500.0,0.00020821,2]
[349564645,1737297048794,-542.2,0.00020821,2]
[349564646,1737297048804,-580.91,0.00020821,2]
[349564647,1737297048816,-555.56,0.00020821,2]
[349564648,1737297048826,-500.0,0.00020821,2]
[349564649,1737297048835,-766.47,0.00020821,2]
[349564650,1737297048846,-573.09,0.00020821,2]
[349564651,1737297048856,-500.0,0.00020821,2]
[349564652,1737297048866,-500.0,0.00020821,2]
[349564653,1737297048877,-512.48,0.00020821,2]
[349564654,1737297048886,-1534.11,0.00020821,2]
[349564655,1737297048896,-813.94,0.00020821,2]
[349564656,1737297048905,-798.62,0.00020821,2]
[349564657,1737297048915,-1219.69,0.00020821,2]
[349564658,1737297048924,-500.0,0.00020821,2]
[349564659,1737297048934,-500.0,0.00020821,2]
[349564660,1737297048944,-500.0,0.00020821,2]
[349564661,1737297048954,-1059.51,0.00020821,2]
[349564662,1737297048963,-278.25432447,0.00020821,2]
[349564663,1737297048973,-500.0,0.00020821,2]
[349564664,1737297048982,-500.0,0.00020821,2]
[349564665,1737297048991,-836.41,0.00020821,2]
[349564666,1737297049001,-2009.29,0.00020821,2]
[349564667,1737297049010,-500.0,0.00020821,2]
[349564668,1737297049020,-1977.7,0.00020821,2]
[349564669,1737297049032,-1978.06,0.00020821,2]
[349564670,1737297049043,-800.83,0.00020821,2]
[349564671,1737297049053,-500.0,0.00020821,2]
[349564672,1737297049065,-2635.49,0.00020821,2]
[349564673,1737297049076,-691.78,0.00020821,2]
[349564674,1737297049085,-500.0,0.00020821,2]
[349564675,1737297049095,-500.0,0.00020821,2]
[349564676,1737297049106,-522.55,0.00020821,2]
[349564677,1737297049115,-500.0,0.00020821,2]
[349564678,1737297049125,-4047.21,0.00020821,2]
[349564679,1737297049135,-500.0,0.00020821,2]
[349564680,1737297049146,-529.81,0.00020821,2]
[349564681,1737297049160,-500.0,0.00020821,2]
[349564682,1737297049169,-500.0,0.00020821,2]
[349564683,1737297049179,-500.0,0.00020821,2]
[349564684,1737297049189,-500.0,0.00020821,2]
[349564685,1737297049199,-513.23,0.00020821,2]
[349564686,1737297049209,-922.3,0.00020821,2]
[349564687,1737297049219,-4552.87,0.00020821,2]
[349564688,1737297049229,-643.63,0.00020821,2]
[349564689,1737297049239,-500.0,0.00020821,2]
[349564690,1737297049249,-500.0,0.00020821,2]
[349564691,1737297049259,-558.78,0.00020821,2]
[349564692,1737297049269,-683.47,0.00020821,2]
[349564693,1737297049279,-871.01,0.00020821,2]
[349564694,1737297049290,-525.32,0.00020821,2]
[349564695,1737297049300,-988.6,0.00020821,2]
[349564696,1737297049312,-503.13,0.00020821,2]
[349564697,1737297049323,-3769.81,0.00020821,2]
[349564698,1737297049333,-1181.73,0.00020821,2]
[349564699,1737297049343,-753.13,0.00020821,2]
[349564700,1737297049353,-500.0,0.00020821,2]
[349564701,1737297049364,-2169.36,0.00020821,2]
[349564702,1737297049376,-349.27752503,0.00020821,2]
[349564703,1737297049386,-500.0,0.00020821,2]
[349564704,1737297049395,-500.0,0.00020821,2]
[349564705,1737297049405,-500.0,0.00020821,2]
[349564706,1737297049414,-715.79,0.00020821,2]
[349564707,1737297049423,-770.14,0.00020821,2]
[349564708,1737297049431,-505.49,0.00020821,2]
[349564709,1737297049440,-500.0,0.00020821,2]
[349564710,1737297049450,-200.0,0.00020881,2]
[349564711,1737297049460,-644.0,0.00020932,2]
[349564712,1737297049469,-472.2507,0.00020995,2]
[349564713,1737297049479,-500.0,0.00021,2]
[349564714,1737297049489,-500.0,0.00021,2]
[349564715,1737297049498,-500.0,0.00021,2]
[349564716,1737297049508,-600.0,0.00021,5]
[349564717,1737297049517,-700.0,0.00021,2]
[349564718,1737297049527,-500.0,0.00021094,2]
[349564719,1737297049536,-500.0,0.00021094,2]
[349564720,1737297049546,-564.97,0.00021094,2]
[349564721,1737297049557,-500.0,0.00021094,2]
[349564722,1737297049567,-888.79,0.00021094,2]
[349564723,1737297049576,-513.62,0.00021094,2]
[349564724,1737297049585,-1454.93,0.00021094,2]
[349564725,1737297049595,-778.47,0.00021094,2]
[349564726,1737297049604,-1218.41,0.00021094,2]
[349564727,1737297049613,-1427.49,0.00021094,2]
[349564728,1737297049623,-500.0,0.00021094,2]
[349564729,1737297049633,-610.78,0.00021094,2]
[349564730,1737297049643,-699.01,0.00021094,2]
[349564731,1737297049653,-500.0,0.00021094,2]
[349564732,1737297049662,-1351.91,0.00021094,2]
[349564733,1737297049672,-1249.63,0.00021094,2]
[349564734,1737297049682,-500.0,0.00021094,2]
[349564735,1737297049691,-500.0,0.00021094,2]
[349564736,1737297049701,-500.0,0.00021094,2]
[349564737,1737297049710,-2627.85,0.00021094,2]
[349564738,1737297049719,-969.05,0.00021094,2]
[349564739,1737297049729,-500.0,0.00021094,2]
[349564740,1737297049738,-620.96,0.00021094,2]
[349564741,1737297049747,-500.0,0.00021094,2]
[349564742,1737297049756,-500.0,0.00021095,2]
[349564743,1737297049765,-500.0,0.00021095,2]
[349564744,1737297049773,-500.0,0.00021095,2]
[349564745,1737297049782,-500.0,0.00021095,2]
[349564746,1737297049791,-500.0,0.00021095,2]
[349564747,1737297049799,-500.0,0.00021095,2]
[349564748,1737297049810,-500.0,0.00021095,2]
[349564749,1737297049819,-500.0,0.00021095,2]
[349564750,1737297049827,-500.0,0.00021095,2]
[349564751,1737297049836,-500.0,0.00021095,2]
[349564752,1737297049845,-500.0,0.00021095,2]
[349564753,1737297049854,-500.0,0.00021095,2]
[349564754,1737297049863,-643.44171466,0.00021095,2]
[349564755,1737297049873,-500.0,0.00021095,2]
[349564756,1737297049882,-416.92,0.00021095,2]
[349564757,1737297049891,-277.37934676,0.00021095,2]
[349564758,1737297049901,-500.0,0.00021095,2]
[349564759,1737297049910,-395.68969554,0.00021095,2]
[349564760,1737297049920,-500.0,0.00021095,2]
[349564761,1737297049929,-500.0,0.00021095,2]
[349564762,1737297049939,-500.0,0.00021095,2]
[349564763,1737297049948,-431.89966733,0.00021095,2]
[349564764,1737297049957,-504.62,0.00021095,2]
[349564765,1737297049967,-594.73,0.00021095,2]
[349564766,1737297049976,-500.0,0.00021095,2]
[349564767,1737297049986,-500.0,0.00021095,2]
[349564768,1737297049995,-500.0,0.00021095,2]
[349564769,1737297050004,-500.0,0.00021095,2]
[349564770,1737297050014,-500.0,0.00021095,2]
[349564771,1737297050023,-227.24753873,0.00021095,2]
[349564772,1737297050033,-267.807979,0.00021095,2]
[349564773,1737297050042,-500.0,0.00021095,2]
[349564774,1737297050052,-500.0,0.00021095,2]
[349564775,1737297050064,-500.0,0.00021095,2]
[349564776,1737297050074,-475.588485,0.00021095,2]
[349564777,1737297050083,-500.0,0.00021095,2]
[349564778,1737297050093,-500.0,0.00021095,2]
[349564779,1737297050102,-500.0,0.00021095,2]
[349564780,1737297050111,-601.28887438,0.00021095,2]
[349564781,1737297050121,-500.0,0.00021095,2]
[349564782,1737297050130,-500.0,0.00021095,2]
[349564783,1737297050142,-500.0,0.00021095,2]
[349564784,1737297050152,-500.0,0.00021095,2]
[349564785,1737297050161,-500.0,0.00021095,2]
[349564786,1737297050170,-894.29,0.00021095,2]
[349564787,1737297050179,-500.0,0.00021095,2]
[349564788,1737297050190,-500.0,0.00021095,2]
[349564789,1737297050199,-500.0,0.00021095,2]
[349564790,1737297050209,-500.0,0.00021095,2]
[349564791,1737297050218,-500.0,0.00021095,2]
[349564792,1737297050227,-500.0,0.00021095,2]
[349564793,1737297050237,-500.0,0.00021095,2]
[349564794,1737297050246,-500.0,0.00021095,2]
[349564795,1737297050256,-960.31,0.00021095,2]
[349564796,1737297050265,-500.0,0.00021095,2]
[349564797,1737297050273,-642.02,0.00021095,2]
[349564798,1737297050283,-500.0,0.00021095,2]
[349564799,1737297050292,-675.63,0.00021095,2]
[349564800,1737297050301,-950.79,0.00021095,2]
[349564801,1737297050313,-500.0,0.00021095,2]
[349564802,1737297050323,-531.04,0.00021095,2]
[349564803,1737297050332,-500.0,0.00021095,2]
[349564804,1737297050341,-500.0,0.00021095,2]
[349564805,1737297050351,-1112.84,0.00021095,2]
[349564806,1737297050360,-1029.94,0.00021095,2]
[349564807,1737297050370,-500.0,0.00021095,2]
[349564808,1737297050379,-500.0,0.00021095,2]
[349564809,1737297050388,-500.0,0.00021095,2]
[349564810,1737297050398,-500.0,0.00021095,2]
[349564811,1737297050407,-500.0,0.00021095,2]
[349564812,1737297050418,-562.67,0.00021095,2]
[349564813,1737297050427,-500.0,0.00021095,2]
[349564814,1737297050437,-500.0,0.00021095,2]
[349564815,1737297050447,-500.0,0.00021095,2]
[349564816,1737297050456,-239.45213897,0.00021095,2]
[349564817,1737297050600,-260.54786103,0.00021095,2]
[349564818,1737297050610,-627.94,0.00021095,2]
[349564819,1737297050619,-500.0,0.00021095,2]
[349564820,1737297050629,-283.51214797,0.00021095,2]
[349564821,1737297050640,-329.98145154,0.00021095,2]
[349564822,1737297050669,-374.76640049,0.00021095,2]
[349564823,1737297050678,-767.92,0.00021095,2]
[349564824,1737297050687,-500.0,0.00021095,2]
[349564825,1737297050697,-1345.32,0.00021095,2]
[349564826,1737297050707,-500.0,0.00021095,2]
[349564827,1737297050718,-500.0,0.00021095,2]
[349564828,1737297050729,-542.2,0.00021095,2]
[349564829,1737297050738,-580.91,0.00021095,2]
[349564830,1737297050747,-555.56,0.00021095,2]
[349564831,1737297050756,-500.0,0.00021095,2]
[349564832,1737297050766,-766.47,0.00021095,2]
[349564833,1737297050775,-573.09,0.00021095,2]
[349564834,1737297050785,-500.0,0.00021095,2]
[349564835,1737297050795,-500.0,0.00021095,2]
[349564836,1737297050803,-512.48,0.00021095,2]
[349564837,1737297050816,-1534.11,0.00021095,2]
[349564838,1737297050825,-813.94,0.00021095,2]
[349564839,1737297050834,-798.62,0.00021095,2]
[349564840,1737297050843,-1219.69,0.00021095,2]
[349564841,1737297050852,-500.0,0.00021095,2]
[349564842,1737297050863,-500.0,0.00021095,2]
[349564843,1737297050872,-500.0,0.00021095,2]
[349564844,1737297050882,-1059.51,0.00021095,2]
[349564845,1737297050892,-500.0,0.00021095,2]
[349564846,1737297050901,-500.0,0.00021095,2]
[349564847,1737297050911,-836.41,0.00021095,2]
[349564848,1737297050920,-2009.29,0.00021095,2]
[349564849,1737297050929,-500.0,0.00021095,2]
[349564850,1737297050939,-1977.7,0.00021095,2]
[349564851,1737297050949,-1978.06,0.00021095,2]
[349564852,1737297050958,-800.83,0.00021095,2]
[349564853,1737297050967,-500.0,0.00021095,2]
[349564854,1737297050977,-2635.49,0.00021095,2]
[349564855,1737297050986,-691.78,0.00021095,2]
[349564856,1737297050996,-500.0,0.00021095,2]
[349564857,1737297051006,-500.0,0.00021095,2]
[349564858,1737297051015,-500.0,0.00021095,2]
[349564859,1737297051024,-4047.21,0.00021095,2]
[349564860,1737297051035,-500.0,0.00021095,2]
[349564861,1737297051044,-529.81,0.00021095,2]
[349564862,1737297051053,-500.0,0.00021095,2]
[349564863,1737297051066,-500.0,0.00021095,2]
[349564864,1737297051076,-500.0,0.00021095,2]
[349564865,1737297051085,-500.0,0.00021095,2]
[349564866,1737297051094,-513.23,0.00021095,2]
[349564867,1737297051104,-922.3,0.00021095,2]
[349564868,1737297051113,-4552.87,0.00021095,2]
[349564869,1737297051122,-643.63,0.00021095,2]
[349564870,1737297051131,-500.0,0.00021095,2]
[349564871,1737297051140,-500.0,0.00021095,2]
[349564872,1737297051150,-558.78,0.00021095,2]
[349564873,1737297051161,-683.47,0.00021095,2]
[349564874,1737297051170,-871.01,0.00021095,2]
[349564875,1737297051179,-525.32,0.00021095,2]
[349564876,1737297051187,-988.6,0.00021095,2]
[349564877,1737297051198,-503.13,0.00021095,2]
[349564878,1737297051206,-3769.81,0.00021095,2]
[349564879,1737297051215,-1181.73,0.00021095,2]
[349564880,1737297051224,-753.13,0.00021095,2]
[349564881,1737297051233,-500.0,0.00021095,2]
[349564882,1737297051242,-2169.36,0.00021095,2]
[349564883,1737297051251,-500.0,0.00021095,2]
[349564884,1737297051261,-500.0,0.00021095,2]
[349564885,1737297051270,-294.57672604,0.00021095,2]
[349564886,1737297051279,-715.79,0.00021095,2]
[349564887,1737297051288,-770.14,0.00021095,2]
[349564888,1737297051298,-505.49,0.00021095,2]
[349564889,1737297051307,-500.0,0.00021095,2]
[349564890,1737297051319,-152.0,0.00021176,3]
[349564891,1737297051327,-224.91,0.0002121,2]
[349564892,1737297051336,-500.0,0.00021368,2]
[349564893,1737297051345,-500.0,0.00021368,2]
[349564894,1737297051354,-500.0,0.00021368,2]
[349564895,1737297051363,-564.97,0.00021368,2]
[349564896,1737297051372,-500.0,0.00021368,2]
[349564897,1737297051381,-888.79,0.00021368,2]
[349564898,1737297051391,-513.62,0.00021368,2]
[349564899,1737297051400,-1454.93,0.00021368,2]
[349564900,1737297051409,-778.47,0.00021368,2]
[349564901,1737297051418,-1218.41,0.00021368,2]
[349564902,1737297051427,-1427.49,0.00021368,2]
[349564903,1737297051436,-500.0,0.00021368,2]
[349564904,1737297051445,-610.78,0.00021368,2]
[349564905,1737297051454,-699.01,0.00021368,2]
[349564906,1737297051463,-500.0,0.00021368,2]
[349564907,1737297051472,-1351.91,0.00021368,2]
[349564908,1737297051481,-1249.63,0.00021368,2]
[349564909,1737297051491,-500.0,0.00021368,2]
[349564910,1737297051500,-500.0,0.00021368,2]
[349564911,1737297051510,-500.0,0.00021368,2]
[349564912,1737297051519,-2627.85,0.00021368,2]
[349564913,1737297051528,-969.05,0.00021368,2]
[349564914,1737297051538,-500.0,0.00021368,2]
[349564915,1737297051548,-620.96,0.00021368,2]
[349564916,1737297051557,-561.89663367,0.00021368,2]
[349564917,1737297051569,-608.7083962,0.00021369,2]
[349564918,1737297051578,-500.0,0.00021369,2]
[349564919,1737297051588,-422.84712849,0.00021369,2]
[349564920,1737297051597,-500.0,0.00021369,2]
[349564921,1737297051607,-500.0,0.00021369,2]
[349564922,1737297051616,-500.0,0.00021369,2]
[349564923,1737297051625,-500.0,0.00021369,2]
[349564924,1737297051634,-193.80607151,0.00021369,2]
[349564925,1737297051644,-500.0,0.00021369,2]
[349564926,1737297051653,-500.0,0.00021369,2]
[349564927,1737297051663,-500.0,0.00021369,2]
[349564928,1737297051672,-500.0,0.00021369,2]
[349564929,1737297051682,-500.0,0.00021369,2]
[349564930,1737297051691,-500.0,0.00021369,2]
[349564931,1737297051700,-500.0,0.00021369,2]
[349564932,1737297051710,-500.0,0.00021369,2]
[349564933,1737297051720,-500.0,0.00021369,2]
[349564934,1737297051729,-504.62,0.00021369,2]
[349564935,1737297051738,-594.73,0.00021369,2]
[349564936,1737297051748,-500.0,0.00021369,2]
[349564937,1737297051757,-500.0,0.00021369,2]
[349564938,1737297051767,-500.0,0.00021369,2]
[349564939,1737297051776,-500.0,0.00021369,2]
[349564940,1737297051785,-500.0,0.00021369,2]
[349564941,1737297051795,-267.807979,0.00021369,2]
[349564942,1737297051804,-351.99057434,0.00021369,2]
[349564943,1737297051817,-500.0,0.00021369,2]
[349564944,1737297051826,-334.88690615,0.00021369,2]
[349564945,1737297051836,-475.588485,0.00021369,2]
[349564946,1737297051845,-500.0,0.00021369,2]
[349564947,1737297051854,-167.29437108,0.00021369,2]
[349564948,1737297051863,-500.0,0.00021369,2]
[349564949,1737297051872,-500.0,0.00021369,2]
[349564950,1737297051881,-500.0,0.00021369,2]
[349564951,1737297051891,-500.0,0.00021369,2]
[349564952,1737297051900,-500.0,0.00021369,2]
[349564953,1737297051909,-500.0,0.00021369,2]
[349564954,1737297051918,-894.29,0.00021369,2]
[349564955,1737297051927,-500.0,0.00021369,2]
[349564956,1737297051936,-49.22032803,0.00021369,2]
[349564957,1737297052027,-412.55863366,0.00021369,2]
[349564958,1737297052037,-500.0,0.00021369,2]
[349564959,1737297052046,-462.44136659,0.00021369,2]
[349564960,1737297052072,-37.55863341,0.00021369,2]
[349564961,1737297052082,-500.0,0.00021369,2]
[349564962,1737297052092,-500.0,0.00021369,2]
[349564963,1737297052102,-500.0,0.00021369,2]
[349564964,1737297052113,-371.5,0.00021369,2]
[349564965,1737297052123,-960.31,0.00021369,2]
[349564966,1737297052133,-256.57584653,0.00021369,2]
[349564967,1737297052148,-243.42415347,0.00021369,2]
[349564968,1737297052157,-642.02,0.00021369,2]
[349564969,1737297052167,-500.0,0.00021369,2]
[349564970,1737297052178,-950.79,0.00021369,2]
[349564971,1737297052189,-504.7667836,0.00021369,2]
[349564972,1737297052198,-531.04,0.00021369,2]
[349564973,1737297052208,-482.05906293,0.00021369,2]
[349564974,1737297052220,-17.94093707,0.00021369,2]
[349564975,1737297052231,-500.0,0.00021369,2]
[349564976,1737297052240,-1112.84,0.00021369,2]
[349564977,1737297052250,-52.21906293,0.00021369,2]
[349564978,1737297052262,-977.72093707,0.00021369,2]
[349564979,1737297052271,-500.0,0.00021369,2]
[349564980,1737297052280,-500.0,0.00021369,2]
[349564981,1737297052291,-500.0,0.00021369,2]
[349564982,1737297052300,-500.0,0.00021369,2]
[349564983,1737297052315,-500.0,0.00021369,2]
[349564984,1737297052324,-284.27906293,0.00021369,2]
[349564985,1737297052337,-278.39093707,0.00021369,2]
[349564986,1737297052346,-500.0,0.00021369,2]
[349564987,1737297052357,-500.0,0.00021369,2]
[349564988,1737297052366,-500.0,0.00021369,2]
[349564989,1737297052375,-500.0,0.00021369,2]
[349564990,1737297052385,-627.94,0.00021369,2]
[349564991,1737297052394,-500.0,0.00021369,2]
[349564992,1737297052404,-988.26,0.00021369,2]
[349564993,1737297052414,-767.92,0.00021369,2]
[349564994,1737297052424,-500.0,0.00021369,2]
[349564995,1737297052433,-1345.32,0.00021369,2]
[349564996,1737297052443,-155.00643305,0.00021369,2]
[349564997,1737297052454,-217.87935468,0.00021369,2]
[349564998,1737297052464,-542.2,0.00021369,2]
[349564999,1737297052474,-580.91,0.00021369,2]
[349565000,1737297052484,-555.56,0.00021369,2]
[349565001,1737297052494,-500.0,0.00021369,2]
[349565002,1737297052504,-766.47,0.00021369,2]
[349565003,1737297052514,-573.09,0.00021369,2]
[349565004,1737297052524,-500.0,0.00021369,2]
[349565005,1737297052534,-500.0,0.00021369,2]
[349565006,1737297052544,-512.48,0.00021369,2]
[349565007,1737297052555,-1534.11,0.00021369,2]
[349565008,1737297052567,-813.94,0.00021369,2]
[349565009,1737297052577,-798.62,0.00021369,2]
[349565010,1737297052587,-1219.69,0.00021369,2]
[349565011,1737297052596,-500.0,0.00021369,2]
[349565012,1737297052606,-500.0,0.00021369,2]
[349565013,1737297052617,-500.0,0.00021369,2]
[349565014,1737297052627,-1059.51,0.00021369,2]
[349565015,1737297052637,-233.55672316,0.00021369,2]
[349565016,1737297052649,-500.0,0.00021369,2]
[349565017,1737297052659,-836.41,0.00021369,2]
[349565018,1737297052669,-2009.29,0.00021369,2]
[349565019,1737297052679,-500.0,0.00021369,2]
[349565020,1737297052688,-1977.7,0.00021369,2]